[Event "14th Karen Asrian Memorial 2024"]
[Site "Yerevan"]
[Date "2024.05.01"]
[Round "8.2"]
[White "Pranesh M"]
[Black "Ohanyan, Emin"]
[Result "1-0"]
[ECO "C58"]
[WhiteElo "2538"]
[BlackElo "2488"]
[Annotator "TA"]
[PlyCount "109"]
[EventDate "2024.04.24"]
[EventType "swiss"]
[EventCountry "ARM"]
[SourceTitle "playchess.com"]
[Source "ChessBase"]
[SourceQuality "1"]
[TimeControl "40/5400+30:1800+30"]

{[%evp 42,109,430,-627,418,434,431,402,437,435,421,333,343,329,319,320,309,328,316,310,316,335,343,343,391,396,388,283,465,398,499,0,480,372,548,547,514,489,1493,1400,1552,1437,1575,1555,1441,1400,1400,1400,1451,1424,4914,4914,4914,4133,4957,4930,4906,4878,4847,4785,4770,4748,4719,4686,4133,2896,1753,1372,1784,769]} 1. e4 {[%emt 0:00:04]} e5 {[%emt 0:10:13]} 2. Nf3 {[%emt 0:00:08]} Nc6 {[%emt 0:00:18]} 3. Bc4 {[%emt 0:00:08]} Nf6 {[%emt 0:00:03]} 4. Ng5 {[%emt 0:00:06]} d5 {[%emt 0:00:03]} 5. exd5 {[%emt 0:00:04]} Na5 {[%emt 0:00:02]} 6. Bb5+ {[%emt 0:00:08]} c6 {[%emt 0:00:04]} 7. dxc6 {[%emt 0:00:05]} bxc6 {[%emt 0:00:03]} 8. Qf3 {[%emt 0:00:06] 8.Bd3 gains popularity.} h6 {[%emt 0:00:03] C58: Two Knights: 4 Ng5 d5 5 exd5 Na5 sidelines.} 9. Ne4 {[%emt 0:00:22]} cxb5 {[%emt 0:00:16]} 10. Nxf6+ {[%emt 0:00:11]} gxf6 {[%emt 0:00:28]} 11. Qxa8 {[%emt 0:00:12]} Qd7 {[%emt 0:00:03]} 12. Qf3 {[%emt 0:08:45]} Bb7 {[%emt 0:00:23]} 13. Qe2 {[%emt 0:02:10]} Bxg2 {[%emt 0:02:38]} 14. Rg1 {[%emt 0:02:15]} Rg8 {[%emt 0:00:17]} 15. Nc3 $146 {[%emt 0:20:17]} ({Predecessor:} 15. d3 Nc6 16. Be3 Bf3 17. Qf1 Rxg1 18. Qxg1 Nb4 19. Kd2 e4 20. d4 Nc6 21. c3 {½-½ Erigaisi,A (2689)-Robson,R (2682) Abu Dhabi Masters 28th 2022 (7)}) 15... Nc6 {[%emt 0:23:42]} 16. Ne4 {[%emt 0:04:53]} Qf5 {[%emt 0:08:47]} 17. c3 {[%emt 0:04:30]} Bxe4 {[%emt 0:24:49]} 18. Rxg8 {[%emt 0:02:47]} Bd3 {[%emt 0:01:04]} 19. Qg4 {[%emt 0:02:38]} Qh7 {[%emt 0:00:03]} 20. Qc8+ {[%emt 0:08:04]} Nd8 {[%emt 0:00:50]} 21. Rxf8+ {[%emt 0:00:21]} Kxf8 {[%emt 0:00:05]} 22. Qxd8+ {[%emt 0:00:21]} Kg7 {[%emt 0:00:07] [#]} 23. f3 $1 {[%emt 0:00:11]} Qg6 {[%emt 0:05:22]} 24. Kf2 {[%emt 0:00:12]} Bf5 {[%emt 0:00:05]} 25. d3 {[%emt 0:01:10]} Qh5 {[%emt 0:01:13]} 26. Bf4 {[%emt 0:01:00]} (26. Bxh6+ Qxh6 27. Rg1+ Bg6 $16) 26... exf4 {[%emt 0:00:27]} 27. Rg1+ {[%emt 0:00:26]} Bg6 {[%emt 0:00:01]} 28. Rg2 {[%emt 0:01:23]} (28. Kg2 Qg5+ 29. Kh1 Qe5) 28... Qh4+ {[%emt 0:02:37]} 29. Kf1 {[%emt 0:00:19]} Qh5 {[%emt 0:00:51]} 30. Rf2 {[%emt 0:00:12]} Qh3+ {[%emt 0:02:51]} 31. Kg1 {[%emt 0:00:08]} Qe6 {[%emt 0:01:36]} 32. Qd4 {[%emt 0:03:15]} Qxa2 {[%emt 0:00:37]} 33. c4 {[%emt 0:00:21]} (33. Qxf4 Bxd3 34. h4 h5 $18) 33... Qa4 {[%emt 0:09:54]} 34. Kg2 {[%emt 0:01:03]} (34. Qxf4 Bxd3 35. Qg4+ Bg6 $16) 34... Qb4 $2 {[%emt 0:00:52]} (34... h5 {keeps fighting.} 35. Qd7 (35. Qxf4 Bxd3 36. Qg3+ Bg6 $18) 35... Qa6 36. Qxb5 (36. cxb5 Qa5 $18) 36... Qa2) 35. Qd5 {[%emt 0:01:20]} (35. Qxf4 Bxd3 36. Qg4+ Bg6 $16) (35. Qxa7 Bxd3 36. cxb5 Bxb5 $18) 35... Qb3 {[%emt 0:01:27]} 36. Qd4 {[%emt 0:01:07]} (36. Qxb5 Qxb5 37. cxb5 Bxd3 $18) 36... Qb4 {[%emt 0:01:43]} 37. h4 {[%emt 0:00:27]} (37. Qxf4 Bxd3 38. Qg4+ Bg6 $16) 37... h5 {[%emt 0:01:30]} (37... Bf5 $142 38. h5 (38. Qxf4 Bxd3 39. Qg4+ Kh8 $18) (38. Qxa7 bxc4 39. dxc4 Qxc4 $18) 38... Qe7) 38. Qd5 $18 {[%emt 0:00:54]} (38. Qxf4 Bxd3 39. Qg3+ Kh7 $16) 38... Qb3 {[%emt 0:01:08]} 39. Qxb5 {[%emt 0:00:51]} Qxb5 {[%emt 0:02:14]} (39... Qxd3 $142 40. Qd5 Qxd5 41. cxd5 Kf8) 40. cxb5 $18 {[%emt 0:00:00]} Bxd3 {[%emt 0:00:00]} 41. Rd2 {[%emt 0:01:10]} Bxb5 {[%emt 0:02:17]} 42. Rd5 {[%emt 0:00:05]} a6 {[%emt 0:00:47]} 43. Rxh5 {[%emt 0:01:02]} Kg6 {[%emt 0:00:17]} 44. Rd5 {[%emt 0:00:55]} Bc4 {[%emt 0:04:37]} 45. Rc5 {[%emt 0:04:42]} Bb3 {[%emt 0:09:18]} 46. Ra5 {[%emt 0:00:11]} Bc4 {[%emt 0:00:03]} 47. Ra4 {[%emt 0:00:37]} Bd3 {[%emt 0:01:32]} 48. Rxf4 {[%emt 0:00:08]} Bb5 {[%emt 0:00:35]} 49. Rg4+ {[%emt 0:00:06]} Kh6 {[%emt 0:00:23]} 50. b4 {[%emt 0:00:05]} Bd7 {[%emt 0:00:12]} 51. Rf4 {[%emt 0:00:10]} Kg7 {[%emt 0:00:22]} 52. Kf2 {[%emt 0:00:04]} Be6 {[%emt 0:00:13]} 53. Ke3 {[%emt 0:00:11]} Kg6 {[%emt 0:00:05]} 54. Kd4 {[%emt 0:00:07]} Bd7 {[%emt 0:00:12]} 55. Ke4 {[%emt 1:05:33]} (55. h5+ $142 Kxh5 56. Rxf6) 1-0

[Event "14th Karen Asrian Memorial 2024"]
[Site "Yerevan"]
[Date "2024.05.01"]
[Round "8.3"]
[White "Andriasian, Zaven"]
[Black "Shahinyan, David"]
[Result "1-0"]
[ECO "C41"]
[WhiteElo "2570"]
[BlackElo "2441"]
[Annotator "TA"]
[PlyCount "155"]
[EventDate "2024.04.24"]
[EventType "swiss"]
[EventCountry "ARM"]
[SourceTitle "playchess.com"]
[Source "ChessBase"]
[SourceQuality "1"]
[TimeControl "40/5400+30:1800+30"]

{[%evp 58,155,231,45,96,96,96,89,195,74,195,195,195,177,171,178,203,208,207,207,233,225,419,392,391,293,288,215,293,287,278,260,288,287,412,401,1062,1084,1069,1136,1188,1135,1072,973,978,832,4457,1772,4889,3750,5133,4989,4916,3799,4889,4889,3090,4316,6536,5518,12795,12840,29949,29950,12823,12212,6536,8313,29955,29961,29956,11678,29972,29973,29972,29973,29974,29974,29975,29968,29973,29974,29974,29970,29975,29976,29975,29965,29980,29980,29982,29983,29983,29984,29985,29985,29986,29987,29987,29988]} 1. e4 {[%emt 0:00:03]} d6 {[%emt 0:01:39]} 2. d4 {[%emt 0:02:58]} Nf6 {[%emt 0:00:03]} 3. Nc3 {[%emt 0:00:15]} e5 {[%emt 0:00:05]} 4. Nf3 {[%emt 0:00:25]} Nbd7 {[%emt 0:00:08]} 5. Bc4 {[%emt 0:00:09]} Be7 {[%emt 0:00:07]} 6. O-O {[%emt 0:00:21]} O-O {[%emt 0:00:06]} 7. Re1 {[%emt 0:00:23]} c6 {[%emt 0:00:48]} 8. a4 {[%emt 0:00:07]} h6 {[%emt 0:00:06]} 9. h3 {[%emt 0:00:13]} Re8 {[%emt 0:00:53]} 10. a5 {[%emt 0:00:12]} Bf8 {[%emt 0:01:22]} 11. d5 {[%emt 0:04:55]} b5 {[%emt 0:00:12]} 12. Bb3 {[%emt 0:07:02]} cxd5 {[%emt 0:11:26]} 13. Nxd5 {[%emt 0:07:56]} Bb7 {[%emt 0:01:41]} 14. a6 {[%emt 0:03:54]} Bxd5 {[%emt 0:01:58]} 15. Bxd5 {[%emt 0:02:15]} Nxd5 {[%emt 0:00:05]} 16. Qxd5 {[%emt 0:00:57]} Rb8 {[%emt 0:00:20]} 17. Bd2 {[%emt 0:09:51]} Nf6 {[%emt 0:06:38]} 18. Qb3 {[%emt 0:02:21]} Qd7 {[%emt 0:03:03]} 19. Be3 {[%emt 0:01:00]} Rec8 {[%emt 0:21:28]} 20. Nd2 {[%emt 0:03:26]} d5 {[%emt 0:07:49]} 21. exd5 {[%emt 0:03:27]} Nxd5 {[%emt 0:00:12]} 22. Nf3 {[%emt 0:02:26]} e4 {[%emt 0:13:57]} 23. Ne5 {[%emt 0:21:19]} Qe6 {[%emt 0:00:26]} 24. Bd4 {[%emt 0:00:09]} Bd6 {[%emt 0:10:40]} 25. Rxe4 {[%emt 0:02:52]} f6 {[%emt 0:09:54]} 26. Rae1 {[%emt 0:00:16]} fxe5 {[%emt 0:00:12]} 27. Rxe5 {[%emt 0:05:35]} Bxe5 {[%emt 0:01:03]} 28. Rxe5 {[%emt 0:00:02]} Qf7 {[%emt 0:00:11]} 29. Rxd5 {[%emt 0:00:13]} Rd8 {[%emt 0:00:56]} (29... Rc4 $16 30. Rd6 (30. Rxb5 $2 $19 {too greedy.})) 30. Qg3 $2 {[%emt 0:00:48]} (30. Rxb5 $2 {loses.} Qxb3 31. Rxb3 Rxb3 32. Bxa7 Rxb2 $19) (30. Bxa7 $1 $18 Rxd5 31. Bxb8 Rd1+ 32. Kh2 Qxb3 33. cxb3) 30... Rxd5 {[%emt 0:01:28]} (30... Rbc8 $14 31. Rf5 Qc7) 31. Qxb8+ $16 {[%emt 0:00:03]} Kh7 {[%emt 0:00:03]} 32. Bxa7 {[%emt 0:03:10]} ({Reject} 32. Qxa7 $6 Qxa7 33. Bxa7 Rd1+ (33... Rd6 34. Kf1 $11) 34. Kh2 Ra1 $11) 32... Rd1+ {[%emt 0:03:21]} 33. Kh2 {[%emt 0:00:08]} Ra1 {[%emt 0:01:05] [#]} (33... Qf6 $16 {keeps fighting.}) 34. Be3 $1 $18 {[%emt 0:00:44]} Rxa6 {[%emt 0:00:13]} 35. Qxb5 {[%emt 0:00:13]} Qc7+ {[%emt 0:00:02]} 36. g3 {[%emt 0:00:19]} Ra1 {[%emt 0:00:01]} 37. c3 {[%emt 0:03:34]} Qd8 {[%emt 0:00:42]} 38. Qf5+ {[%emt 0:02:06]} Kg8 {[%emt 0:03:25]} 39. Qe6+ {[%emt 0:00:31]} Kh8 $2 {[%emt 0:00:52]} (39... Kh7 40. Qe4+ Kg8) 40. Bd4 $18 {[%emt 0:00:00]} Kh7 {[%emt 0:00:00]} 41. Qe4+ {[%emt 0:04:52]} Kg8 {[%emt 0:05:28]} 42. h4 {[%emt 0:00:49]} Qd7 {[%emt 0:01:29]} 43. b4 {[%emt 0:02:14]} Ra6 {[%emt 0:01:00]} 44. Qe5 {[%emt 0:07:16]} Re6 {[%emt 0:08:25]} 45. Qf5 {[%emt 0:00:28]} Qc6 {[%emt 0:05:20]} (45... Qe7 $142 46. Qd5 Qf7) 46. b5 $18 {[%emt 0:03:45]} g6 {[%emt 0:00:02]} (46... Qc4 $142 47. b6 Qc6) 47. Qxg6+ $18 {[%emt 0:05:48]} Rxg6 {[%emt 0:00:02]} 48. bxc6 {[%emt 0:00:08]} Rxc6 {[%emt 0:00:01]} 49. h5 {[%emt 0:00:13]} Kf7 {[%emt 0:00:02]} 50. g4 {[%emt 0:00:20]} Ke6 {[%emt 0:00:55]} 51. Kg3 {[%emt 0:00:33]} Rc8 {[%emt 0:00:26]} 52. Bg7 {[%emt 0:01:16]} Rc7 {[%emt 0:00:06]} 53. Bxh6 {[%emt 0:00:38]} Rxc3+ {[%emt 0:00:05]} 54. f3 {[%emt 0:01:27]} Kf6 {[%emt 0:02:00]} 55. Bf4 {[%emt 0:01:07]} Rb3 {[%emt 0:00:38]} 56. Bc1 {[%emt 0:01:55]} Rb1 {[%emt 0:04:56]} 57. Bd2 {[%emt 0:00:22]} Rd1 {[%emt 0:00:49]} 58. Be3 {[%emt 0:00:28]} Rb1 {[%emt 0:00:23]} 59. f4 {[%emt 0:02:28]} Rb3 {[%emt 0:02:44]} 60. Kf3 {[%emt 0:00:08]} Rb4 {[%emt 0:00:01]} 61. Bf2 {[%emt 0:00:22]} Ra4 {[%emt 0:01:59]} 62. Bc5 {[%emt 0:02:26]} Rc4 {[%emt 0:00:07]} 63. Bd6 {[%emt 0:01:03]} Rc3+ {[%emt 0:01:10]} 64. Ke4 {[%emt 0:00:41]} Rc4+ {[%emt 0:00:49]} 65. Kd5 {[%emt 0:00:24]} Rc1 {[%emt 0:00:41]} 66. Be5+ {[%emt 0:00:14]} Kf7 {[%emt 0:00:01]} 67. Ke4 {[%emt 0:01:54]} Rh1 {[%emt 0:00:27]} 68. Bd4 {[%emt 0:00:42]} Rh4 {[%emt 0:00:47]} 69. Kf5 {[%emt 0:01:27]} Rh1 {[%emt 0:01:14]} 70. Kg5 {[%emt 0:00:10]} Rd1 {[%emt 0:00:01]} 71. Be5 {[%emt 0:00:18]} Re1 {[%emt 0:00:30]} 72. Kh6 {[%emt 0:00:59]} Rg1 {[%emt 0:00:57] [#]} 73. g5 $1 {[%emt 0:00:16]} Kg8 {[%emt 0:02:13]} 74. Kg6 {[%emt 0:00:22]} Rb1 {[%emt 0:00:35]} 75. h6 {[%emt 0:01:04]} Rb7 {[%emt 0:00:02]} 76. Kh5 {[%emt 0:00:10]} Ra7 {[%emt 0:00:58]} 77. g6 {[%emt 0:00:08]} Rg7 {[%emt 0:00:01]} 78. h7+ {[%emt 0:00:28]} 1-0

[Event "14th Karen Asrian Memorial 2024"]
[Site "Yerevan"]
[Date "2024.05.01"]
[Round "8.4"]
[White "Davtyan, Arsen"]
[Black "Pogosyan, Stefan"]
[Result "0-1"]
[ECO "B40"]
[WhiteElo "2421"]
[BlackElo "2387"]
[Annotator "TA"]
[PlyCount "86"]
[EventDate "2024.04.24"]
[EventType "swiss"]
[EventCountry "ARM"]
[SourceTitle "playchess.com"]
[Source "ChessBase"]
[SourceQuality "1"]
[TimeControl "40/5400+30:1800+30"]

{[%evp 9,86,24,5,12,14,11,43,19,21,3,12,19,17,-7,-33,-31,-22,-21,0,-40,-28,-31,-29,-24,-25,-34,-11,-20,-25,-23,-13,-18,-7,-29,0,-25,-16,-2,0,-28,-18,-15,-15,-20,0,-23,-18,-63,-30,-22,-21,-20,0,-339,-324,-360,-116,-325,-301,-293,-314,-295,-321,-291,-240,-597,-619,-962,-962,-1420,-1441,-947,-964,-962,-938,-5118,-4914,-1377,-829]} 1. e4 {[%emt 0:00:58]} c5 {[%emt 0:05:04]} 2. Nf3 {[%emt 0:00:08]} e6 {[%emt 0:00:07]} 3. b3 {[%emt 0:00:07]} a6 {[%emt 0:06:51]} 4. Bb2 {[%emt 0:00:06]} b5 {[%emt 0:00:05]} 5. d4 {[%emt 0:00:15]} cxd4 {[%emt 0:01:20]} 6. Nxd4 {[%emt 0:00:05]} Bb7 {[%emt 0:00:27]} 7. Bd3 {[%emt 0:00:07]} d6 {[%emt 0:09:34]} 8. Nd2 {[%emt 0:19:01] White is slightly better.} Nf6 {[%emt 0:01:30]} 9. O-O {[%emt 0:08:42]} Nbd7 {[%emt 0:05:44][%cal Bb8d7,Bd7b6,Bb6c4,Bc4d2][%mdl 32]} 10. b4 {[%emt 0:11:28]} Be7 {[%emt 0:11:50]} 11. f4 {[%emt 0:15:08]} O-O {[%emt 0:03:59]} 12. Qe2 {[%emt 0:00:05]} Nb6 {[%emt 0:16:40]} 13. Rae1 {[%emt 0:02:17]} Nc4 {[%emt 0:02:31]} 14. Ba1 {[%emt 0:06:19]} Nxd2 {[%emt 0:03:22]} 15. Qxd2 {[%emt 0:00:51]} d5 {[%emt 0:00:09]} 16. exd5 {[%emt 0:01:46]} (16. e5 Ne4 17. Bxe4 dxe4 $11) 16... Nxd5 {[%emt 0:01:28]} 17. a3 {[%emt 0:02:47]} Bf6 {[%emt 0:02:32]} 18. Nb3 {[%emt 0:05:36]} (18. f5 {with more complications.} exf5 19. Bxf5 Qc7 20. Nb3) 18... Bxa1 {[%emt 0:00:52]} 19. Rxa1 {[%emt 0:00:01]} Qb6+ {[%emt 0:01:49]} 20. Nc5 {[%emt 0:00:33]} Rfd8 {[%emt 0:03:10]} 21. Kh1 {[%emt 0:01:43]} (21. f5 {seems wilder.} e5 22. f6 Nxf6 23. Qg5) 21... Bc6 {[%emt 0:01:10]} 22. Rae1 {[%emt 0:04:14]} Qc7 {[%emt 0:02:56]} 23. f5 {[%emt 0:03:48]} e5 {[%emt 0:00:26]} 24. Qf2 {[%emt 0:07:11]} Nf6 {[%emt 0:04:03]} 25. Qg3 {[%emt 0:00:38]} Re8 {[%emt 0:00:06]} 26. Re3 {[%emt 0:01:19]} Ra7 {[%emt 0:02:23]} 27. Qh4 {[%emt 0:03:18] [#] Strongly threatening Rg3.} h6 {[%emt 0:00:47]} 28. Be4 {[%emt 0:03:38]} a5 {[%emt 0:02:52]} 29. h3 {[%emt 0:01:24]} axb4 {[%emt 0:01:15]} 30. axb4 {[%emt 0:00:01]} Ra2 {[%emt 0:01:18]} 31. Bd3 $2 {[%emt 0:01:48][%mdl 8192] [#]} (31. Rc3 $11 {and White is okay.}) 31... e4 $1 $19 {[%emt 0:04:33][%mdl 512]} 32. Bxe4 {[%emt 0:00:13]} (32. Be2 Rxc2) 32... Rxc2 $2 {[%emt 0:00:05]} (32... Nxe4 $19 {and Black stays clearly on top.} 33. Nxe4 Qe5 (33... Rxc2 34. Rfe1 $15)) 33. Ne6 {[%emt 0:00:51] This move loses the game for White.} Bxe4 {[%emt 0:04:41]} ({Not} 33... fxe6 34. Bxc2 Bxg2+ 35. Kxg2 $14) 34. Nxc7 {[%emt 0:00:01]} Bxg2+ {[%emt 0:00:05]} 35. Kg1 {[%emt 0:00:03]} Rxe3 {[%emt 0:00:06]} 36. Rf2 {[%emt 0:00:16]} Rc4 {[%emt 0:00:57]} ({And not} 36... Rxh3 37. Qxh3 Rxf2 (37... Bxh3 38. Rxc2 Bxf5 39. Rc5 $16) 38. Qe3 $11) 37. Rf4 {[%emt 0:00:54]} (37. Qxc4 {nothing else works.} bxc4 38. Kxg2) 37... Be4 {[%emt 0:00:35] Black is clearly winning.} ({Stronger than} 37... Bxh3 38. Rxc4 bxc4 39. Nd5 Nxd5 40. Qd8+ Kh7 41. Qxd5 $11) 38. Nxb5 {[%emt 0:00:32] White is weak on the light squares} Re2 {[%emt 0:00:51] ( -> ...Rc1+)} 39. Rf2 {[%emt 0:01:01]} Re1+ {[%emt 0:00:09]} 40. Kh2 {[%emt 0:00:00]} Rh1+ {[%emt 0:00:00]} 41. Kg3 {[%emt 0:00:08]} Rxb4 {[%emt 0:03:55]} 42. Re2 {[%emt 0:02:37]} Rb3+ {[%emt 0:02:17]} 43. Kf4 {[%emt 0:00:07]} Rhxh3 {[%emt 0:01:18] Weighted Error Value: White=0.95/Black=0.13 (very precise) .  Loses game:     	White=2     	---        Missed win:     	---       	Black=1      Mistake:       	White=1     	---        Inaccurate:     	White=4     	Black=3      OK:         	White=9     	Black=13     Best:        	White=2     	Black=3      Brilliant:      	---       	Black=1} 0-1

[Event "14th Karen Asrian Memorial 2024"]
[Site "Yerevan"]
[Date "2024.05.01"]
[Round "8.5"]
[White "Babujian, Levon"]
[Black "Sukiasyan, Vahe A."]
[Result "0-1"]
[ECO "C50"]
[WhiteElo "2338"]
[BlackElo "2258"]
[Annotator "TA"]
[PlyCount "140"]
[EventDate "2024.04.24"]
[EventType "swiss"]
[EventCountry "ARM"]
[SourceTitle "playchess.com"]
[Source "ChessBase"]
[SourceQuality "1"]
[TimeControl "40/5400+30:1800+30"]

{[%evp 58,140,114,111,108,110,106,108,113,92,308,131,228,181,304,301,330,229,206,180,152,187,311,333,329,268,327,330,294,281,462,251,252,205,580,578,797,744,757,767,735,750,729,417,885,0,414,0,955,542,434,0,0,0,406,381,371,408,306,0,0,0,0,0,0,0,0,0,0,0,0,0,0,0,56,66,93,137,61,0,0,0,0,-29993,-29994]} 1. e4 {[%emt 0:00:03]} e5 {[%emt 0:00:34]} 2. Nf3 {[%emt 0:00:36]} Nc6 {[%emt 0:00:04]} 3. Bc4 {[%emt 0:00:28]} Nf6 {[%emt 0:01:37]} 4. Nc3 {[%emt 0:00:12]} Bc5 {[%emt 0:01:58]} 5. d3 {[%emt 0:00:20]} h6 {[%emt 0:00:51]} 6. Be3 {[%emt 0:01:33]} Bxe3 {[%emt 0:06:14]} 7. fxe3 {[%emt 0:00:19]} d6 {[%emt 0:00:04]} 8. O-O {[%emt 0:00:24]} O-O {[%emt 0:00:54]} 9. a4 {[%emt 0:03:07] C50: Hungarian Defence and Giuoco Pianissimo.} a5 {[%emt 0:15:39]} 10. Qd2 $146 {[%emt 0:07:17]} ({Predecessor:} 10. d4 exd4 11. exd4 Nxe4 12. Nxe4 d5 13. Bd3 dxe4 14. Bxe4 Qd6 15. c3 Bd7 16. Qb3 {1-0 So,W (2769)-Eljanov,P (2695) Julius Baer Rapid Div 1 W 2023 (1.1)}) 10... Ne7 {[%emt 0:06:02]} 11. d4 {[%emt 0:08:49]} Ng6 {[%emt 0:06:49]} 12. h3 {[%emt 0:02:17]} Re8 {[%emt 0:07:14]} 13. Qf2 {[%emt 0:05:16]} Be6 {[%emt 0:02:31]} 14. d5 {[%emt 0:02:31]} Bd7 {[%emt 0:00:10]} 15. g4 {[%emt 0:01:00]} h5 {[%emt 0:09:05]} 16. gxh5 {[%emt 0:05:46]} Nxh5 {[%emt 0:00:13]} 17. Kh2 {[%emt 0:00:17]} Nf8 {[%emt 0:15:38]} 18. Rg1 {[%emt 0:02:16]} Nh7 {[%emt 0:05:59]} 19. Raf1 {[%emt 0:02:45]} Qf6 {[%emt 0:00:47]} 20. Be2 {[%emt 0:04:32]} Re7 {[%emt 0:02:40]} 21. Qg2 {[%emt 0:05:10]} Qh6 {[%emt 0:01:20]} 22. Nh4 {[%emt 0:05:58]} N5f6 {[%emt 0:01:29]} 23. Qg3 {[%emt 0:09:59]} Kh8 {[%emt 0:01:15]} 24. Bb5 {[%emt 0:03:43]} g6 {[%emt 0:01:33]} 25. Bxd7 {[%emt 0:00:29]} Rxd7 {[%emt 0:00:37]} 26. Rf3 {[%emt 0:02:15]} Nh5 {[%emt 0:01:58]} 27. Qf2 {[%emt 0:01:31]} Ng5 {[%emt 0:03:51]} 28. Rf6 {[%emt 0:00:23]} Rg8 {[%emt 0:00:20]} 29. Qf5 {[%emt 0:03:54]} Kh7 {[%emt 0:01:32]} (29... gxf5 $2 30. Rxh6+ Nh7 $18) (29... Qg7 $1 $11) 30. Rxg6 $16 {[%emt 0:05:58]} (30. Qxd7 $2 Nxf6 31. Qb5 Qxh4 $19) 30... fxg6 {[%emt 0:00:05]} 31. Qxd7+ {[%emt 0:00:07]} Rg7 {[%emt 0:00:02]} 32. Qg4 $1 {[%emt 0:02:23]} Nf7 {[%emt 0:00:03]} 33. Rf1 {[%emt 0:01:37]} Ng5 $2 {[%emt 0:02:07]} (33... Qxe3 $2 34. Rxf7 Qd2+ 35. Kg1 $18) (33... Nh8 $16) 34. Nd1 {[%emt 0:05:02]} (34. Nb5 $1 $18) 34... c6 {[%emt 0:02:13]} (34... b6 $16 {keeps fighting.} 35. Rf2 Nf7) 35. c4 {[%emt 0:03:59]} cxd5 {[%emt 0:00:56]} (35... Nf7 $142 36. Rf2 Ng5) 36. exd5 $18 {[%emt 0:00:07]} b6 {[%emt 0:02:16]} 37. b3 {[%emt 0:00:26]} e4 {[%emt 0:00:40]} 38. Nc3 {[%emt 0:00:07]} Re7 {[%emt 0:01:01]} 39. Nb5 {[%emt 0:05:39]} Nf7 {[%emt 0:00:35]} (39... Rf7 $142 40. Rxf7+ Nxf7) 40. Nd4 $18 {[%emt 0:00:00]} Ne5 {[%emt 0:00:00]} 41. Qxe4 {[%emt 0:03:53]} Qg5 {[%emt 0:04:27]} 42. Rg1 {[%emt 0:02:17]} Qf6 {[%emt 0:02:44]} 43. Ne6 {[%emt 0:07:14]} Kh6 $2 {[%emt 0:03:50]} (43... Rxe6 44. dxe6 Qf2+ 45. Rg2 Qxh4 46. Qxh4 Nf3+ 47. Kh1 Nxh4) 44. Kh1 {[%emt 0:06:41]} (44. Nf8 $142 Qf2+ 45. Rg2) 44... Rf7 $18 {[%emt 0:00:12]} 45. Ng5 {[%emt 0:02:39]} Rf8 $2 {[%emt 0:03:01]} (45... Re7 46. Ne6 Rf7) 46. Ngf3 $18 {[%emt 0:01:41]} g5 {[%emt 0:04:16]} 47. Nxg5 {[%emt 0:00:37]} Qxg5 {[%emt 0:00:09]} 48. Rxg5 {[%emt 0:00:09]} Kxg5 {[%emt 0:00:03]} 49. Kg2 {[%emt 0:00:40]} Rf7 {[%emt 0:00:54]} 50. Qd4 {[%emt 0:02:25]} Rf6 {[%emt 0:00:32]} (50... Rg7 $142 51. Qe4 Rf7) 51. Qe4 {[%emt 0:03:07]} (51. b4 $142) 51... Rf7 $1 $18 {[%emt 0:00:08]} 52. Qd4 {[%emt 0:01:59]} Rf6 $1 {[%emt 0:00:06]} 53. Qxb6 {[%emt 0:00:07]} Kxh4 {[%emt 0:00:07]} 54. Qxa5 $2 {[%emt 0:00:17]} ({White should try} 54. Qd4+ $18 Kg5 55. c5) 54... Rg6+ $11 {[%emt 0:03:02]} 55. Kf2 {[%emt 0:00:04]} Ng3 $2 {[%emt 0:01:32][%mdl 8192]} (55... Kxh3 $11 56. e4 Nf6 (56... Rg2+ 57. Ke3 $11)) 56. Qd8+ $18 {[%emt 0:00:07]} Kxh3 {[%emt 0:00:05] [#]} 57. Qh8+ $1 {[%emt 0:00:09]} Kg4 {[%emt 0:00:03]} 58. a5 $2 {[%emt 0:02:06]} (58. Qc8+ $18 Kh4 59. Ke1 Nf3+ 60. Kd1) 58... Nd3+ $11 {[%emt 0:01:05]} 59. Kg2 {[%emt 0:01:12]} (59. Kg1 $5 Kf3 $8 60. Qh3 $11) 59... Ne1+ {[%emt 0:00:04]} 60. Kf2 {[%emt 0:01:04]} (60. Kg1 $5 Kf3 $8 61. Qh2 $11 (61. Qf8+ Ke2 $11)) 60... Nd3+ {[%emt 0:00:05]} 61. Kg2 {[%emt 0:00:02]} (61. Kg1 $5 Kf3 $8 62. Qh3 $11) 61... Ne1+ {[%emt 0:00:05]} 62. Kg1 {[%emt 0:01:46]} Kf3 $1 {[%emt 0:00:54]} 63. Qf8+ {[%emt 0:00:24]} (63. Qh2 $5 Nd3 $8 64. Qg2+ Kxe3 65. Kh2 $11) 63... Ke2 $1 {[%emt 0:00:03]} 64. Qf2+ {[%emt 0:00:21]} Kd1 {[%emt 0:00:02]} 65. Kh2 $1 {[%emt 0:02:00]} Ne2 {[%emt 0:01:11]} (65... Ne4 $1 $11 66. Qf5 (66. Qf4 $2 Ke2 $19) 66... Rh6+ 67. Kg1 Rh4 (67... Rh1+ $2 68. Kxh1 Ng3+ 69. Kg1 $18)) 66. Kh3 $1 $14 {[%emt 0:00:53]} Kd2 $1 {[%emt 0:02:17]} 67. Kh4 {[%emt 0:00:48]} Nd3 {[%emt 0:00:04]} 68. Qf8 {[%emt 0:00:32]} (68. Kh5 $14 Rg8 (68... Nxf2 $2 69. Kxg6 Nc1 70. c5 $18) 69. Qf7 (69. Qf6 Ne5 $14)) 68... Ne5 $11 {[%emt 0:01:00]} 69. a6 {[%emt 0:00:21]} (69. c5 Kxe3 70. Qf5 (70. cxd6 Nf4) 70... Rg2 $19 (70... Nf4 71. Qxg6 Nexg6+ 72. Kg5 $15) (70... Nf4 71. Qxg6 Nexg6+ 72. Kg5 $11)) 69... Kxe3 {[%emt 0:00:31]} 70. a7 $2 {[%emt 0:00:34][%mdl 8192] [#]} (70. Qf5 $11 Rg8 (70... Nf4 $2 71. Qxg6 Nf3+ 72. Kg3 $18) 71. Qg5+ Rxg5 72. Kxg5) 70... Nf4 $1 {[%emt 0:00:22]} ({Not} 70... Rg4+ $2 71. Kh5 Rg6 72. a8=Q $18 (72. a8=B {leads to mate.} Ng3+ 73. Kh4 Nf3+)) 0-1